Cogmind - Beta 15 @@@ ROGUE MODE // 2025.05.23 @ 23:25:48 Player: Zaros426 Result: Self-destructed Performance ------------- Evolutions (2) 1000 Regions Visited (4) 800 Robots Destroyed (66) 330 Value Destroyed (1400) 1400 Prototype IDs (14) 280 Alien Tech Used (0) 0 Bonus (127) 127 TOTAL SCORE: 3937 Bonus ------- Follower Combat Kills 127 Cogmind --------- Core Integrity 520/550 Matter 268/300 Energy 180/180 System Corruption 0% Temperature Warm (174) Movement Treading (246) Ox1 Location -8/Materials Parts ------- > --- POWER (1) -------- Meta Core > --- PROPULSION (3+1) - Light Treads Light Treads Spiked Treads > --- UTILITY (5+1) ---- Huge Storage Unit Makeshift Light Armor Plating > --- WEAPON (2+1) ----- Subdweller Beam Cannon Assault Cannon > --- INVENTORY (25) --- Large Storage Unit Large Battery (200) Scrap Shield Trap Extractor (0/4) EM Pulse Gun Mini Grenade Launcher Subdweller Shrapnel Launcher Datajack Multitool Axe Stasis Trap (100%) Peak State ------------ > --- POWER ------------ Meta Core > --- PROPULSION ------- Light Treads Spiked Treads Improved VTOL Module > --- UTILITY ---------- Huge Storage Unit Makeshift Light Armor Plating > --- WEAPON ----------- Subdweller Beam Cannon Subdweller Machine Gun > --- INVENTORY -------- Large Storage Unit Large Battery Scrap Shield Trap Extractor EM Pulse Gun Mini Grenade Launcher Subdweller Shrapnel Launcher Datajack Multitool Stasis Trap [Rating: 30] Favorites ----------- Power Meta Core Engine Ion Engine Power Core Meta Core Propulsion Light Treads Treads Light Treads Flight Unit Improved VTOL Module Utility Large Storage Unit Device Seismic Detector Storage Large Storage Unit Protection Makeshift Light Armor Plating Weapon Subdweller Machine Gun Energy Gun EM Pulse Gun Energy Cannon Subdweller Beam Cannon Ballistic Gun Subdweller Machine Gun Ballistic Cannon Assault Cannon Launcher Mini Grenade Launcher Special Weapon Mining Laser Build | -11 -10 -10 -10 -8 ------- Run | Yrd Mat Min Sub Mat Slots Evolved 4 | . . . . 4 Power . | . . . . . Propulsion 1 | . . . . 1 Utility 3 | . . . . 3 Weapon . | . . . . . Parts Attached 34 | 6 11 1 12 4 Power 4 | 1 1 1 1 . Engine 3 | 1 1 1 . . Core 1 | . . . 1 . Reactor . | . . . . . Propulsion 9 | 2 2 . 3 2 Treads 8 | 2 2 . 3 1 Leg . | . . . . . Wheel . | . . . . . Hover . | . . . . . Flight 1 | . . . . 1 Utility 5 | 1 2 . 1 1 Device 1 | . 1 . . . Storage 3 | 1 1 . . 1 Processor . | . . . . . Hackware . | . . . . . Protection 1 | . . . 1 . Artifact . | . . . . . Weapon 16 | 2 6 . 7 1 Energy Gun 4 | 1 2 . 1 . Energy Cannon 3 | . . . 3 . Ballistic Gun 4 | 1 1 . 2 . Ballistic Cannon 1 | . . . . 1 Launcher 3 | . 2 . 1 . Special Weapon 1 | . 1 . . . Impact Weapon . | . . . . . Slashing Weapon . | . . . . . Piercing Weapon . | . . . . . Special Melee Weapon . | . . . . . Unidentified Prototypes 1 | . . . . 1 Parts Lost 4 | . 4 . . . Power 1 | . 1 . . . Propulsion 2 | . 2 . . . Utility . | . . . . . Weapon 1 | . 1 . . . Highest Loss Streak 3 | . 3 . . . To Critical Strikes . | . . . . . Average Backups 11 | 1 11 14 11 9 Power . | . . . . . Propulsion 1 | . 1 2 2 . Utility 4 | . 4 6 4 4 Weapon 3 | 1 4 4 2 3 Tool/Special . | . . . . . Unused Backups 11 | . . 1 4 6 Power . | . . . . . Propulsion . | . . . . . Utility 8 | . . 1 4 3 Weapon 1 | . . . . 1 Tool/Special 2 | . . . . 2 Average Slot Usage (%) 80 | . 96 100 70 56 Engine 5 | . 13 14 . . Core 6 | . . . 9 7 Treads 23 | . 27 28 20 21 Device 6 | . 11 14 2 . Storage 11 | . 14 14 10 7 Protection 4 | . . . 7 7 Energy Gun 6 | . 14 14 1 . Energy Cannon 5 | . . . 8 7 Ballistic Gun 7 | . 6 . 8 5 Launcher 2 | . 3 14 . . Special Weapon 1 | . 3 . . . Peak Build Rating 30 | 6 9 10 27 30 Average Rating 18 | 5 8 9 24 27 On Entrance 10 | . 6 9 10 26 Naked Turns . | . . . . . Heaviest Build 103 | 13 30 29 42 103 Greatest Support 60 | 40 40 40 40 60 Greatest Overweight (x) 2 | . 1 . 1 2 Average Overweight (x) . | . . . . 1 Largest Inventory Capacity 25 | 8 15 15 15 25 Average Capacity 14 | 7 13 15 15 24 Most Carried 15 | 4 15 15 15 13 Average Carried 13 | 1 11 14 14 11 Final Capacity 25 | 8 15 15 15 25 Final Carried 15 | 4 15 15 12 12 Class Distribution -------------------- 91% | Mutant 8% | Scavenger-Mutant Dominant Class ---------------- Mutant | -10/Materials Mutant | -10/Mines Mutant | -10/Subcaves Mutant | -8/Materials Resources | -11 -10 -10 -10 -8 ----------- Run | Yrd Mat Min Sub Mat Matter Collected 1289 | 314 485 50 400 40 Remotely . | . . . . . Salvage Created 1611 | 238 544 55 680 94 Parts 125 | 17 47 10 46 5 Haulers Intercepted 2 | . 2 . . . Recyclers Shooed . | . . . . . Parts Field Recycled . | . . . . . Retrieved Matter . | . . . . . Parts Self-Destructed 17 | . . . 17 . Prevented . | . . . . . Kills | -11 -10 -10 -10 -8 ------- Run | Yrd Mat Min Sub Mat Combat Hostiles Destroyed 41 | . 20 3 17 1 Guns 10 | . 6 . 4 . Cannons 5 | . . . 4 1 AOE 24 | . 14 3 7 . Classes Destroyed 14 | 3 7 . 4 . Worker 4 | 2 1 1 . . Builder 2 | . 1 1 . . Tunneler 7 | 6 . 1 . . Hauler 2 | . 2 . . . Recycler 2 | 1 . . . 1 Mechanic 1 | . 1 . . . Operator 2 | . 2 . . . Turret 2 | . . . 2 . Watcher 3 | . 3 . . . Swarmer 15 | . 9 3 3 . Grunt 13 | . 11 . 2 . Sentry 2 | . . . 1 1 Artisan 1 | . . . 1 . Subdweller 11 | . . . 11 . Best Kill Streak 9 | 7 9 3 3 2 Combat Bots Only 7 | . 7 3 3 1 Max Kills in Single Turn 3 | 2 2 3 3 1 Gunslinging . | . . . . . Exploded 3 | . 2 2 3 . Melee . | . . . . . Uniques/NPCs Destroyed . | . . . . . Combat | -11 -10 -10 -10 -8 -------- Run | Yrd Mat Min Sub Mat Hostile Shots Fired 160 | . 75 7 74 4 Missed 57 | . 18 5 34 . Hits 103 | . 57 2 40 4 Projectile 103 | . 57 2 40 4 Critical Strikes 2 | . . . 2 . Damage Taken 1445 | . 716 38 632 59 Core 191 | . 94 12 55 30 Absorbed by Shields . | . . . . . Regen/Repaired (Parts) 57 | . 57 . . . Core Remaining (%) 67 | 100 . . 35 . Volleys Fired 219 | 18 76 3 116 6 Largest 2 | 2 2 1 2 2 Hottest 120 | 60 100 30 120 117 Shots Fired 313 | 36 124 3 139 11 Gun 166 | 36 98 . 31 1 Cannon 106 | . . . 96 10 Launcher 31 | . 19 3 9 . Special 10 | . 7 . 3 . Kinetic 89 | 18 41 . 25 5 Thermal 178 | 18 53 . 101 6 Explosive 31 | . 19 3 9 . Electromagnetic 15 | . 11 . 4 . Robot Hit Streak 10 | 7 9 . 10 4 Robot Miss Streak 5 | 3 5 1 4 2 Penetration Max . | . . . . . Secondary Targets . | . . . . . Shots Hit Robots 122 | 19 65 . 32 6 Core Hits 92 | 10 47 7 26 2 Critical Kills 2 | . . . 2 . Critical Parts Destroyed . | . . . . . Critical Strikes 3 | . 1 . 2 . Burn 1 | . 1 . . . Meltdown 2 | . . . 2 . Melee Attacks . | . . . . . Impact . | . . . . . Slashing . | . . . . . Piercing . | . . . . . Sneak Attacks . | . . . . . Combat Hostiles . | . . . . . Follow-up Attacks . | . . . . . Damage Inflicted 3699 | 226 1869 316 1133 155 Guns 1241 | 226 714 . 301 . Cannons 541 | . . . 386 155 Explosions 1869 | . 1107 316 446 . Melee . | . . . . . Ramming . | . . . . . Kinetic 723 | 128 271 . 281 43 Thermal 1171 | 98 451 124 386 112 Explosive 1712 | . 1074 192 446 . Electromagnetic 93 | . 73 . 20 . Impact . | . . . . . Slashing . | . . . . . Piercing . | . . . . . Highest Corruption . | . . . . . Average Corruption . | . . . . . Corruption Purged . | . . . . . Corruption Blocked . | . . . . . Overload Shots . | . . . . . Overflow Damage 70 | . 61 9 . . Projectiles 2 | . 2 . . . Explosions 68 | . 59 9 . . Melee . | . . . . . Knockbacks . | . . . . . Impact . | . . . . . Kinetic . | . . . . . Secondary . | . . . . . Self-Inflicted Damage 178 | . 120 25 33 . Shots 8 | . 6 1 1 . Rammed . | . . . . . Targets Rammed . | . . . . . Kicked . | . . . . . Crushed . | . . . . . Highest Temperature 234 | 20 102 . 95 234 Average Temperature 31 | 20 30 . 21 105 Received Heat Transfer 402 | . 249 . 135 18 Siege Activations . | . . . . . Martial Activations . | . . . . . Shielding Activations . | . . . . . Robots Disrupted . | . . . . . Combat Hostiles . | . . . . . Robots Corrupted . | . . . . . Combat Hostiles . | . . . . . Parts Fried . | . . . . . Impact Corruptions . | . . . . . Robots Melted 2 | . . . 2 . Combat Hostiles 2 | . . . 2 . Parts Melted 8 | . 2 . 6 . Heat Transferred 2268 | 225 1177 200 518 148 Parts Sabotaged . | . . . . . Parts Stolen . | . . . . . Parts Stripped . | . . . . . Power Chain Reactions 1 | . 1 . . . Alert | -11 -10 -10 -10 -8 ------- Run | Yrd Mat Min Sub Mat Maximum Alert Level 1 | . 1 . . . Low Security (%) 74 | 100 56 100 . 100 Level 1 25 | . 43 . . . Level 2 . | . . . . . Level 3 . | . . . . . Level 4 . | . . . . . Level 5 . | . . . . . High Security . | . . . . . Max Security . | . . . . . Peak Influence 290 | 20 290 167 . 75 Initial 75 | . 3 64 . 75 Average 125 | 2 192 36 . 53 Influence Increases 1218 | 45 764 123 249 37 Destroy 0b10 Robot/C 660 | . 400 60 180 20 Destroy 0b10 Robot/NC 115 | 45 50 15 . 5 Destroy Leader 120 | . 90 10 10 10 Allied During Kill 14 | . . . 14 . Successful Hack 22 | . 22 . . . Select Force Hacks 60 | . 60 . . . Disable Machine 30 | . 15 15 . . Destroy Structure 122 | . 97 23 . 2 Lose Combat Pursuer 75 | . 30 . 45 . Influence Decreases 1156 | 40 602 290 104 120 Entered New Map 175 | . 2 103 . 70 Time Decay 941 | 40 560 187 104 50 Lost Part 40 | . 40 . . . Squads Dispatched 5 | . 5 . . . Investigation 3 | . 3 . . . Extermination . | . . . . . Reinforcement 2 | . 2 . . . Assault . | . . . . . Garrison . | . . . . . Intercept . | . . . . . Searches Triggered . | . . . . . Construction Impeded . | . . . . . Haulers Reinforced . | . . . . . Active Scanning Responses . | . . . . . Cargo Convoy Interrupts . | . . . . . Stealth | -11 -10 -10 -10 -8 --------- Run | Yrd Mat Min Sub Mat Distress Signals 4 | . 3 . . 1 Communications Jammed . | . . . . . Distress Signals . | . . . . . Times Spotted 61 | . 33 3 23 2 Peak Tracking Total 5 | . 5 3 4 2 Tactical Retreats 4 | . 2 . 2 . Traps | -11 -10 -10 -10 -8 ------- Run | Yrd Mat Min Sub Mat Traps Triggered 4 | . . . 4 . Indirectly . | . . . . . Trap Hack Attempts . | . . . . . Triggered . | . . . . . Disarmed . | . . . . . Reprogrammed . | . . . . . Reused . | . . . . . Traps Extracted . | . . . . . Installed 2 | . . . 2 . Triggered . | . . . . . Most Traps Carried 3 | . . 3 3 1 Machines | -11 -10 -10 -10 -8 ---------- Run | Yrd Mat Min Sub Mat Machines Disabled 3 | . 1 1 1 . Max in Single Turn 1 | . 1 1 1 . Machines Repaired . | . . . . . Machines Dismantled . | . . . . . Machines Sabotaged . | . . . . . Overloaded Fab Kills . | . . . . . Hacking | -11 -10 -10 -10 -8 --------- Run | Yrd Mat Min Sub Mat Machines Accessed 12 | . 9 . 3 . Terminals 6 | . 6 . . . Fabricators . | . . . . . Repair Stations 1 | . 1 . . . Recycling Units 2 | . 2 . . . Scanalyzers . | . . . . . Garrison Access . | . . . . . Total Hacks 37 | . 26 . 11 . Successful 26 | . 15 . 11 . Failed 11 | . 11 . . . Catastrophic . | . . . . . Database Lockouts . | . . . . . Manual 23 | . 23 . . . Terminals 22 | . 22 . . . Fabricators . | . . . . . Repair Stations 2 | . 2 . . . Recycling Units 2 | . 2 . . . Scanalyzers . | . . . . . Garrison Access . | . . . . . Terminal Hacks 17 | . 6 . 11 . Record 9 | . . . 9 . Robot Analysis 3 | . 3 . . . Prototype ID Bank 1 | . 1 . . . Open Door 1 | . . . 1 . Terminal Index 1 | . 1 . . . Locate Traps 1 | . 1 . . . Proto ID Catalog 1 | . . . 1 . Fabricator Hacks . | . . . . . Repair Station Hacks 2 | . 2 . . . Scan Component 1 | . 1 . . . Repair 1 | . 1 . . . Recycling Unit Hacks . | . . . . . Scanalyzer . | . . . . . Garrison Access Hacks . | . . . . . Unauthorized Hacks 7 | . 7 . . . Terminals 5 | . 5 . . . Skim 5 | . 5 . . . Fabricators . | . . . . . Repair Stations . | . . . . . Recycling Units 2 | . 2 . . . Tunnel 2 | . 2 . . . Scanalyzers . | . . . . . Garrison Access . | . . . . . Data Cores Recovered . | . . . . . Used . | . . . . . Hacking Detections 6 | . 6 . . . Full Trace Events 1 | . 1 . . . Feedback Events . | . . . . . Feedback Blocked . | . . . . . Robot Schematics Acquired . | . . . . . Robots Built . | . . . . . Authchips . | . . . . . Time . | . . . . . Total Robot Build Rating . | . . . . . Part Schematics Acquired . | . . . . . Parts Built . | . . . . . Authchips . | . . . . . Time . | . . . . . Total Part Build Rating . | . . . . . Parts Repaired 1 | . 1 . . . Time 26 | . 26 . . . Parts Recycled . | . . . . . Recycled Matter . | . . . . . Retrieved Matter . | . . . . . Retrieved Components . | . . . . . Parts Scanalyzed . | . . . . . Part Schematics Acquired . | . . . . . Parts Damaged . | . . . . . Bothacking | -11 -10 -10 -10 -8 ------------ Run | Yrd Mat Min Sub Mat Used RIF Installer . | . . . . . Robots Hacked . | . . . . . Non-combat . | . . . . . Combat . | . . . . . Robot Hacks Applied . | . . . . . Relay Couplers Released . | . . . . . Fabnet Peak Effective % . | . . . . . Robots Rewired . | . . . . . Allies Hacked . | . . . . . Hacks Repelled . | . . . . . Allies | -11 -10 -10 -10 -8 -------- Run | Yrd Mat Min Sub Mat Total Allies 3 | . . 3 . . Largest Group 3 | . . 3 3 . Highest-Rated Group 40 | . . 40 40 . Highest-Rated Ally 16 | . . 16 16 . Total Orders . | . . . . . Ally Attacks 46 | . . . 46 . Total Damage 539 | . . . 539 . Kills 5 | . . . 5 . Allies Corrupted . | . . . . . Allies Melted . | . . . . . Intel | -11 -10 -10 -10 -8 ------- Run | Yrd Mat Min Sub Mat Active Infowar (turns) 3613 | . 1466 938 1209 . Seismic 3613 | . 1466 938 1209 . Robot Analysis Total 3 | . 3 . . . Derelict Logs Recovered 4 | . . 1 3 . Drone Launches . | . . . . . Drone Recoveries . | . . . . . Exploration | -11 -10 -10 -10 -8 ------------- Run | Yrd Mat Min Sub Mat Turns Passed 7828 | 216 1774 938 4783 117 Spaces Moved 3633 | 76 849 550 2123 35 Core 2 | 2 . . . . Treads 3631 | 74 849 550 2123 35 Legs . | . . . . . Wheels . | . . . . . Hover . | . . . . . Flight . | . . . . . Fastest Speed 50 | 50 160 160 160 246 Average Speed 187 | 157 160 160 205 248 Slowest Speed 340 | 160 240 160 250 340 Overloaded Moves . | . . . . . Propulsion Burnouts . | . . . . . Robots Hopped . | . . . . . Potential Cave-ins . | . . . . . Cave-ins Triggered . | . . . . . Exploration Rate (%) 61 | 6 98 99 97 5 Regions Visited 4 Branch Regions 2 Pre-discovered Areas 3 | . 2 . 1 . Known Exits Taken 3 | . 1 1 1 . Unknown Exits Taken 1 | 1 . . . . Scrap Searched 6 | . . 2 4 . Spaces Dug 60 | . 13 . 47 . Terrain Destroyed 254 | . 106 31 115 2 Melee . | . . . . . Projectile 51 | . 5 . 44 2 AOE 203 | . 101 31 71 . Terrain Rammed . | . . . . . Walls Destroyed . | . . . . . Machines Disabled . | . . . . . Actions | -11 -10 -10 -10 -8 --------- Run | Yrd Mat Min Sub Mat Total 4301 | 134 1121 607 2386 53 Wait 323 | 31 159 46 86 1 Move 3629 | 75 848 549 2122 35 Hop . | . . . . . Pick Up 34 | 4 15 3 10 2 Fast Attach 17 | 6 2 . 7 2 Attach 10 | . 5 . 2 3 Detach 2 | . . . 1 1 Swap 32 | . 13 2 17 . Drop 31 | . 3 4 21 3 Fire 219 | 18 76 3 116 6 Melee . | . . . . . Ram . | . . . . . Kick . | . . . . . Crush . | . . . . . Escape Stasis 2 | . . . 2 . Rewire . | . . . . . Trap 2 | . . . 2 . Miscellaneous . | . . . . . Route ------- -11/Scrapyard -10/Materials (discovered 6 exits: *Mat x3 / *Min x2 / *Sub) -10/Mines (discovered 3 exits: *Mat x2 / *Sub) -10/Subcaves (discovered 3 exits: *Mat x2 / *Rec) -8/Materials (discovered 2 exits: Sto x2) History --------- Turn | Location | Event 18 | -11/Scrapyard | Discovered new exit (range 15) 217 | -11/Scrapyard | Entered Materials 327 | -10/Materials | Build established: Mutant 331 | -10/Materials | Discovered new exit (range 15) 332 | -10/Materials | Destroyed 7 combat bots 513 | -10/Materials | Discovered new exit (range 16) 889 | -10/Materials | Discovered new exit (range 13) 997 | -10/Materials | Lost 3 parts (1p2n) 1156 | -10/Materials | Discovered new exit (range 15) 1326 | -10/Materials | Discovered new exit (range 9) 1366 | -10/Materials | Repaired Lgt. Treads 1472 | -10/Materials | Learned location of 2 exits from Subcaves 1573 | -10/Materials | Identified exit to Subcaves 1653 | -10/Materials | Learned Storage security intel 1698 | -10/Materials | Build established: Scavenger-Mutant 1708 | -10/Materials | Identified exit to Mines 1708 | -10/Materials | Identified exit to Materials 1991 | -10/Materials | Entered Mines 2001 | -10/Mines | Met a Derelict bent on vengeance 2012 | -10/Mines | Learned 4 Materials zone layouts 2126 | -10/Mines | Build established: Mutant 2566 | -10/Mines | Assisted by bots powering up and referring to "LRC-V3" 2692 | -10/Mines | Found a hidden stash of uninstalled traps 2914 | -10/Mines | Discovered exit to Subcaves (range 6) 2929 | -10/Mines | Entered Subcaves 2929 | -10/Subcaves | Accompanied by 3 allies 2930 | -10/Subcaves | Identified exit to Materials 2930 | -10/Subcaves | Identified exit to Recycling 2933 | -10/Subcaves | Shifting Twisted Machinery released Sub. Machine Gun 2957 | -10/Subcaves | Shifting Twisted Machinery released Piercing Trap 3113 | -10/Subcaves | Visited 4L-MR0's lab 3134 | -10/Subcaves | Found Meta Core 3135 | -10/Subcaves | Attached Meta Core, gained temporary slots: Propulsion, Utility, Weapon 3331 | -10/Subcaves | Disturbed a concealed Subdweller 3332 | -10/Subcaves | Disturbed a concealed Subdweller 3818 | -10/Subcaves | Shifting Twisted Machinery released Battle Cannon 4207 | -10/Subcaves | Discovered exit to Materials (range 8) 4599 | -10/Subcaves | Ambushed by Subdweller buried in earth 4829 | -10/Subcaves | Ambushed by Subdweller buried in earth 5024 | -10/Subcaves | Core integrity fell below 50% 6516 | -10/Subcaves | Lost 3 allies 6544 | -10/Subcaves | Learned 2 Materials zone layouts 6565 | -10/Subcaves | Shifting Twisted Machinery released Scrap Shield 6577 | -10/Subcaves | Shifting Twisted Machinery released Sub. Monowheel 7712 | -10/Subcaves | Entered Materials 7712 | -8/Materials | Evolved 4 slots: Propulsion x1, Utility x3 7713 | -8/Materials | Identified exit to Storage 7829 | -8/Materials | Self-destructed Last Messages --------------- PARAMETERS=PROPULSION+1,UTILITY+3 LOCATION=MATERIALS GOAL=ESCAPE Loading 1 Storage entrance... Loading 6 Materials zones... 07732_ Dropped Lgt. Treads. 07733_ Acquired Prototype Flight Unit. 07733_ Identified Imp. VTOL Module. 07733_ Faulty integration damages Meta Core (-111). 07734_ Dropped Faulty Imp. VTOL Module. 07738_ Acquired Lgt. Treads. 07745_ Acquired Assault Cannon. 07778_ Acquired Axe. 07783_ Acquired 40 matter. 07802_ W-25 Informer sends out distress signal. 07806_ Sub. Machine Gun shoots sparks and powers down. 07809_ Dropped Broken Sub. Machine Gun. 07820_ Y-45 Defender destroyed. 07823_ R-06 Scavenger destroyed. 07829_ Connecting with Terminal... Map ----- +----------------------------------------------------+ | | | | | | | | | | | | | | | | | | | | | ?????????????????????????????????????????????? | | ?????????????????????????????????????????????? | | ?????????##########??????########????######### | | ?????????# #?????? #????# | | ?????????# """ ######?""" ##???# """ | | ?????????# """ ## #?""" #???# """ | | ?????????# """ ##! #?""" ##???# """ | | ?????????# = ## %#? #????# | | ?????????# [= ## #? "" "" #????# """ | | ?????????# [= ## #? ""S"" #????# """ | | ?????????# [ ## #? """" #????# """ | | ?????????# ## #? #????# | | ?????????#####+######+###;##+#############/### | | ??????????# [^%% | | ??????????# [ [^^ ! | | ??????????# @ ^^ =%! | | ??????????##########T###" ######"######## | | ???????????????????###??"T#?????????????# | | ?????????????????????????##?????????????# | | ????????????????????????????????????????# | | ????????????????????????????????????????# | | ????????????????????????????????????????# | | ????????????????????????????????????????# | | ????????????????????????????????????????# | | ????????????????????????????????????????###### | | ?????????????????????????????????????????????? | | ?????????????????????????????????????????????? | | ?????????????????????????????????????????????? | | ?????????????????????????????????????????????? | | ?????????????????????????????????????????????? | | ?????????????????????????????????????????????? | | ?????????????????????????????????????????????? | | ?????????????????????????????????????????????? | | ?????????????????????????????????????????????? | | ?????????????????????????????????????????????? | | ?????????????????????????????????????????????? | | ?????????????????????????????????????????????? | | ?????????????????????????????????????????????? | | ?????????????????????????????????????????????? | | ?????????????????????????????????????????????? | +----------------------------------------------------+ Best States ------------- Heat Dissipation 31 Energy Generation 17 Energy Capacity 250 Matter Stores 300 Matter Capacity 300 Sight Range 16 Terrain Scan Density 10 Armor Coverage 100 Evasion (%) 40 Recoil Reduction 3 Item Schematics ----------------- None Robot Schematics ------------------ None Fabricated ------------ Nothing Repaired ---------- Lgt. Treads | 59% | -10/Materials Alien Tech Used ----------------- None Achievements -------------- None Challenges ------------ None Game ------ Seed VortexNanofilamentsMesh Manual? 0 Play Time 00:34:48 Cumulative 265.0 hours Start 2025.05.23 @ 22:51:31 End 2025.05.23 @ 23:25:48 Sessions 1 Manual Loads 0 Difficulty Rogue Special Mode None Game No. 123 Rogue 123 Adventurer 0 Explorer 0 Win Type - Total 1 Types 0/0/0/0/1/0/0/0/0/0 Lore% 65 Gallery% 73 Achievement% 64 Wizard Run 0 Options --------- Layout 0 ASCII 0 Keyboard 0 Movement Mouse Keybinds 0 Fullscreen 1 Font 24/Smallcaps Map View 183x50 Zoom Use 0% Tactical HUD 1 Map Filters NONE Filters NONE Steam 0 RUN: d2fffade-5cd7-4ee3-a98a-d8f50d0aed2f